[Event "Czech Extraliga 2023-24"]
[Site "Czech Republic"]
[Date "2024.02.10"]
[Round "7.6"]
[White "Piesik, Piotr"]
[Black "Berezjuk, Sergej"]
[Result "0-1"]
[ECO "C24"]
[WhiteElo "2421"]
[BlackElo "2342"]
[Annotator "TA"]
[PlyCount "82"]
[EventDate "2023.10.14"]
[EventCountry "CZE"]
[SourceTitle "playchess.com"]
[Source "ChessBase"]
[SourceQuality "1"]
[TimeControl "40/5400+30:1800+30"]

{[%evp 9,82,5,23,-2,3,0,-2,-9,-6,-7,0,0,10,-9,18,0,0,0,4,-25,-29,-35,-42,-35,-29,-35,-22,-16,0,0,0,-64,-55,-87,-29,-66,-33,-97,-99,-100,-70,-64,-63,-67,-54,-170,-168,-186,-160,-202,-203,-283,-257,-847,-856,-876,-835,-815,-767,-6387,-6379,-5569,-5469,-29990,-29984,-29993,-29994,-29994,-29995,-29996,-29997,-29997,-29998,-29998,-29999]} 1. e4 {[%emt 0:00:12]} e5 {[%emt 0:00:54]} 2. Bc4 {[%emt 0:00:25]} Nf6 {[%emt 0:00:15]} 3. d3 {[%emt 0:00:32]} c6 {[%emt 0:01:04]} 4. Nf3 {[%emt 0:00:47]} d5 {[%emt 0:00:06]} 5. Bb3 {[%emt 0:00:05]} a5 {[%emt 0:00:06] ...a4 would now be deadly.} 6. Nc3 {[%emt 0:03:03]} Bb4 $1 {[%emt 0:12:21] Hoping for ...a4.} 7. a3 $1 {[%emt 0:02:57]} Bxc3+ {[%emt 0:00:24]} 8. bxc3 {[%emt 0:00:04] The position is equal.} a4 {[%emt 0:00:22]} 9. Ba2 {[%emt 0:00:05]} O-O {[%emt 0:08:04]} 10. exd5 {[%emt 0:42:40]} Nxd5 {[%emt 0:04:19]} 11. Bd2 {[%emt 0:04:50][%cal Oe1g1]} f6 {[%emt 0:06:22]} 12. c4 {[%emt 0:02:52]} Ne7 {[%emt 0:04:47]} 13. Rb1 {[%emt 0:02:29]} c5 {[%emt 0:01:54]} 14. O-O {[%emt 0:02:30]} Nbc6 {[%emt 0:04:06]} 15. Qe2 {[%emt 0:04:20]} b6 {[%emt 0:04:55]} 16. Rb2 {[%emt 0:04:19]} Bg4 {[%emt 0:09:31]} 17. c3 {[%emt 0:00:18] Prevents Nd4.} Qc7 {[%emt 0:06:02]} 18. Bb1 {[%emt 0:04:49]} Rfe8 {[%emt 0:04:36]} 19. h3 {[%emt 0:04:42]} Bh5 {[%emt 0:01:42][%cal Bg4h5,Bh5f7,Bf7e8,Be8c6,Bc6b7][%mdl 32]} 20. g4 {[%emt 0:00:18]} (20. Bc2 $11) 20... Bf7 $1 $15 {[%emt 0:01:39]} 21. Nh4 {[%emt 0:05:15]} Ng6 {[%emt 0:02:53]} (21... Rad8 $17) 22. Nf5 {[%emt 0:01:05]} Nce7 {[%emt 0:01:46]} 23. Nxe7+ {[%emt 0:04:47]} ({White should try} 23. Qe4 $15) 23... Rxe7 $17 {[%emt 0:00:44]} 24. Re1 {[%emt 0:00:13]} Be8 {[%emt 0:04:36]} 25. f3 $1 {[%emt 0:05:44]} Bc6 {[%emt 0:04:14]} 26. Qf2 {[%emt 0:00:16] Repels Nh4} Rae8 {[%emt 0:01:23]} 27. d4 {[%emt 0:02:25] Black continues to play with concentration.} ({Better is} 27. h4 $1 $15) 27... exd4 $19 {[%emt 0:00:47]} 28. Rxe7 {[%emt 0:00:03]} Rxe7 {[%emt 0:00:49]} 29. cxd4 {[%emt 0:00:03]} cxd4 {[%emt 0:00:41]} 30. f4 {[%emt 0:00:07] [#]} Bb7 $1 {[%emt 0:04:47]} 31. Bd3 $2 {[%emt 0:02:03]} (31. Qxd4 Nh4 32. Kf2) 31... Qc6 {[%emt 0:01:05][%csl Gb7][%cal Rc6h1]} 32. Kh2 {[%emt 0:00:03] [#]} Nh4 $1 {[%emt 0:02:21][%mdl 512] ( -> ...Qh1+)} 33. Kg3 {[%emt 0:01:12]} Nf3 {[%emt 0:00:58] Threatens to win with ...Nxd2.} 34. c5 {[%emt 0:01:16]} Nxd2 {[%emt 0:00:51]} (34... Qxc5 $2 {too greedy.} 35. Bb4 Qc7 36. Rc2 $18 (36. Bxe7 g5 $17)) 35. Rxd2 {[%emt 0:00:20]} Re3+ {[%emt 0:01:59]} 36. Kh4 {[%emt 0:00:02]} Qxc5 {[%emt 0:01:38] Black mates.} 37. Bf5 {[%emt 0:00:34]} g5+ {[%emt 0:01:15]} 38. fxg5 {[%emt 0:00:46]} fxg5+ {[%emt 0:00:10]} ({Stronger than} 38... Qxa3 39. Bxh7+ Kxh7 40. Qf5+ Kg8 41. Qg6+ Kf8 42. Qxf6+ Kg8 (42... Ke8 43. Qh8+ Kd7 44. Qxd4+ Kc7 45. Qd8+ Kc6 46. Qd5+ Kc7 47. Qd8+ Kc6 48. Qd5+ Kc7 49. Qd8+ $11) 43. Qg6+ Kf8 44. Qh6+ Ke8 45. Qh8+ Qf8 46. Qxd4 $11) 39. Kh5 {[%emt 0:00:26]} Rxh3+ {[%emt 0:00:17]} 40. Kxg5 {[%emt 0:00:05]} Qe7+ {[%emt 0:00:21]} 41. Kf4 {[%emt 0:30:04]} Qd6+ {[%emt 0:30:21] Weighted Error Value: White=0.62/Black=0.07 (flawless) .  Mistake:       	White=4     	Black=1      Inaccurate:     	White=4     	Black=2      OK:         	White=10    	Black=8      Best:        	---       	Black=1      Strong:       	White=2     	Black=3} 0-1

[Event "Czech Extraliga 2023-24"]
[Site "Czech Republic"]
[Date "2024.02.10"]
[Round "7.6"]
[White "Jurcik, Martin"]
[Black "Kulhanek, Tomas"]
[Result "1/2-1/2"]
[ECO "C07"]
[WhiteElo "2359"]
[BlackElo "2316"]
[Annotator "TA"]
[PlyCount "45"]
[EventDate "2023.10.14"]
[EventCountry "CZE"]
[SourceTitle "playchess.com"]
[Source "ChessBase"]
[SourceQuality "1"]
[TimeControl "40/5400+30:1800+30"]

{[%evp 14,45,25,0,4,20,22,25,20,25,33,0,2,9,25,0,49,29,23,21,28,21,27,15,26,0,0,0,0,0,0,0,0,0]} 1. e4 {[%emt 0:00:13]} e6 {[%emt 0:00:12]} 2. d4 {[%emt 0:01:24]} d5 {[%emt 0:00:06]} 3. Nd2 {[%emt 0:00:22]} c5 {[%emt 0:00:16]} 4. Ngf3 {[%emt 0:00:49]} cxd4 {[%emt 0:00:22]} 5. Nxd4 {[%emt 0:00:20]} Nc6 {[%emt 0:00:21]} 6. Bb5 {[%emt 0:00:16]} Bd7 {[%emt 0:00:07]} 7. Nxc6 {[%emt 0:00:19]} bxc6 {[%emt 0:00:04]} 8. Bd3 {[%emt 0:00:21]} Bd6 {[%emt 0:01:11]} 9. Qe2 {[%emt 0:01:48]} Qb8 {[%emt 0:04:07]} 10. Nf3 {[%emt 0:03:05]} dxe4 {[%emt 0:01:01] White has an edge.} 11. Bxe4 {[%emt 0:06:11]} Nf6 {[%emt 0:00:27]} 12. Bd3 {[%emt 0:00:48]} O-O {[%emt 0:03:05]} 13. O-O {[%emt 0:12:22]} h6 {[%emt 0:07:13]} 14. Re1 {[%emt 0:04:46]} Bf4 {[%emt 0:12:00]} (14... e5 $11) 15. c4 {[%emt 0:07:33]} Bxc1 {[%emt 0:01:51]} 16. Raxc1 {[%emt 0:00:15]} c5 {[%emt 0:00:15]} 17. Ne5 {[%emt 0:03:18][%cal Od3e4] [#] Threatens to win with Be4!} Rd8 {[%emt 0:01:06]} 18. Bb1 {[%emt 0:16:00]} Be8 {[%emt 0:06:10]} 19. Rc3 {[%emt 0:03:35]} Rd4 {[%emt 0:02:12] The position is equal.} 20. Nf3 {[%emt 0:11:40]} Rd8 {[%emt 0:03:17]} 21. Ne5 {[%emt 0:01:49]} Rd4 {[%emt 0:00:09]} 22. Nf3 {[%emt 0:03:32]} Rd8 {[%emt 0:00:12]} 23. Ne5 {[%emt 0:08:51] Weighted Error Value: White=0.07 (flawless) /Black=0.05 (flawless) .  Mistake:       	---       	Black=1      Inaccurate:     	White=2     	---        OK:         	White=4     	Black=6} 1/2-1/2

[Event "Czech Extraliga 2023-24"]
[Site "Czech Republic"]
[Date "2024.02.10"]
[Round "7.7"]
[White "Pulpan, Jakub"]
[Black "Kusa, Jakub"]
[Result "1/2-1/2"]
[ECO "C54"]
[WhiteElo "2393"]
[BlackElo "2350"]
[Annotator "TA"]
[PlyCount "77"]
[EventDate "2023.10.14"]
[EventCountry "CZE"]
[SourceTitle "playchess.com"]
[Source "ChessBase"]
[SourceQuality "1"]
[TimeControl "40/5400+30:1800+30"]

{[%evp 10,77,20,12,10,8,11,13,19,9,12,17,17,0,10,9,36,0,14,11,15,14,38,31,66,66,65,42,85,33,29,-8,0,-77,-67,-72,-66,-112,-118,-110,-110,-106,-68,-50,-60,-66,-64,-91,-79,-84,-85,-90,-84,-84,-84,-84,-75,-56,-56,-112,-53,-56,0,-83,0,-31,0,-60,0,-62]} 1. e4 {[%emt 0:00:05]} e5 {[%emt 0:00:31]} 2. Nf3 {[%emt 0:00:24]} Nc6 {[%emt 0:00:10]} 3. Bc4 {[%emt 0:02:01]} Bc5 {[%emt 0:00:35]} 4. d3 {[%emt 0:01:21]} Nf6 {[%emt 0:00:54]} 5. O-O {[%emt 0:00:32]} d6 {[%emt 0:02:23]} 6. c3 {[%emt 0:01:33]} a5 {[%emt 0:01:31]} 7. Nbd2 {[%emt 0:03:38]} O-O {[%emt 0:00:25]} 8. a4 {[%emt 0:03:08]} Ba7 {[%emt 0:03:39]} 9. Re1 {[%emt 0:04:50]} Be6 {[%emt 0:01:03]} 10. Qb3 {[%emt 0:06:47][%csl LRb7,LRe6]} Qd7 {[%emt 0:05:46]} 11. Nf1 {[%emt 0:05:06]} Bxc4 {[%emt 0:02:43]} 12. Qxc4 {[%emt 0:01:23]} Ne7 {[%emt 0:01:18][%cal Bc6e7,Be7g6,Bg6e5,Be5c4,Bc4d6,Bd6e4][%mdl 32]} 13. Qb3 {[%emt 0:09:33][%cal Oc1g5]} Qe6 {[%emt 0:08:14]} 14. Qc2 {[%emt 0:01:50]} (14. Qxb7 $2 Bb6 15. Be3 Rfb8 $19) 14... h6 {[%emt 0:01:59]} 15. Ng3 {[%emt 0:02:03]} Ng6 {[%emt 0:05:09]} 16. d4 {[%emt 0:07:15]} c6 {[%emt 0:02:09]} 17. h3 {[%emt 0:04:41]} Rfe8 {[%emt 0:02:02]} 18. Be3 {[%emt 0:15:22]} d5 {[%emt 0:06:36]} 19. dxe5 {[%emt 0:03:54]} (19. Nxe5 $1 $16 Nxe4 20. Nxe4 dxe4 21. Qxe4) 19... Nxe5 $14 {[%emt 0:03:12]} 20. Nd4 {[%emt 0:03:37]} Qd7 {[%emt 0:00:52]} 21. f4 {[%emt 0:04:05]} (21. exd5 $11 Nxd5 22. Rad1) 21... Nxe4 $1 $17 {[%emt 0:01:46]} 22. Nxe4 {[%emt 0:02:18]} Nc4 {[%emt 0:00:12]} 23. Nf6+ {[%emt 0:02:31]} gxf6 {[%emt 0:00:17]} 24. Bf2 {[%emt 0:01:21]} Nd6 {[%emt 0:01:34] Prevents Nf5} 25. Nb3 {[%emt 0:04:09]} Ne4 {[%emt 0:10:31]} 26. Bxa7 {[%emt 0:00:22]} Rxa7 {[%emt 0:00:20][%cal Ba8a7,Ba7e7,Be7e4][%mdl 32]} 27. Rad1 {[%emt 0:03:19][%cal Oe1e4] Threatens to win with Rxe4!} Nd6 {[%emt 0:02:10]} 28. Nc5 {[%emt 0:04:08]} Qd8 {[%emt 0:02:17]} 29. Rxe8+ {[%emt 0:00:34]} Qxe8 {[%emt 0:00:38]} 30. Qf2 {[%emt 0:00:17][%cal Oc5d7]} b6 {[%emt 0:03:37]} 31. Nb3 {[%emt 0:00:09][%cal Ob3d4]} Re7 {[%emt 0:03:25]} 32. Nd4 {[%emt 0:01:58] Against Re2} (32. Qxb6 $2 Rb7 33. Qf2 (33. Qc5 $2 Qe2 $19) 33... Rxb3 $19) 32... Re4 {[%emt 0:07:22]} 33. Qh4 {[%emt 0:00:42][%csl LRf6,LRh6]} Kg7 {[%emt 0:03:22]} 34. Kh2 {[%emt 0:01:37] [#]} ({White should try} 34. b4 $15) 34... c5 {[%emt 0:02:09]} ({Better is} 34... Qd7 $1 $17 35. b4 Re3) 35. Qg4+ $15 {[%emt 0:00:14]} Kh8 {[%emt 0:02:06]} ({Black should play} 35... Kf8 $15 36. Nf5 Nxf5 37. Qxf5 Qe6 (37... Qxa4 38. Rxd5 Re6 39. Rd8+ Ke7 40. Ra8 $11) 38. Rxd5 Qxf5 39. Rxf5 Kg7) 36. Qh4 {[%emt 0:00:27] [#]} (36. Nf5 $11 Nxf5 37. Qxf5) 36... Kg7 {[%emt 0:01:24]} ({Much worse is} 36... cxd4 $6 37. Qxf6+ Kh7 38. Qxd6 $11) (36... Qxa4 37. Qxh6+ Kg8 38. Rd3) (36... Kh7 $1 $17 37. Qxf6 Qd7) 37. Qg4+ {[%emt 0:00:33]} Kh8 {[%emt 0:00:39]} 38. Qh4 {[%emt 0:00:53]} Kg7 {[%emt 0:01:04]} ({But not} 38... cxd4 39. Qxf6+ Kh7 40. Qxd6 $11) ({Worse is} 38... Qxa4 39. Qxh6+ Kg8 40. Rd3) 39. Qg4+ {Weighted Error Value: White=0.17 (very precise) /Black=0.17 (very precise) .  Mistake:       	White=5     	Black=3      Inaccurate:     	White=2     	Black=4      OK:         	White=11    	Black=10     Best:        	White=2     	Black=1      Strong:       	---       	Black=1} 1/2-1/2

[Event "Czech Extraliga 2023-24"]
[Site "Czech Republic"]
[Date "2024.02.10"]
[Round "7.7"]
[White "Svanda, Ondrej"]
[Black "Velicka, Petr"]
[Result "1/2-1/2"]
[ECO "C65"]
[WhiteElo "2369"]
[BlackElo "2369"]
[Annotator "TA"]
[PlyCount "93"]
[EventDate "2023.10.14"]
[EventCountry "CZE"]
[SourceTitle "playchess.com"]
[Source "ChessBase"]
[SourceQuality "1"]
[TimeControl "40/5400+30:1800+30"]

{[%evp 11,93,15,11,15,31,31,10,27,24,25,44,31,17,13,47,43,52,47,59,35,39,16,23,10,19,13,24,0,9,6,10,-10,28,0,0,-34,-25,-54,0,-22,-8,-37,0,-108,-124,-115,-95,-152,-135,-190,-143,-185,-198,-196,-220,-238,-243,-198,-217,-218,-209,-194,-193,-345,-345,-347,-350,-29971,-31,-31,-36,-30,-35,-30,-30,-30,-30,-30,-30,-30,-30,-30,-30,-36]} 1. e4 {[%emt 0:00:04]} e5 {[%emt 0:00:05]} 2. Nf3 {[%emt 0:00:06]} Nc6 {[%emt 0:00:05]} 3. Bb5 {[%emt 0:00:06]} Nf6 {[%emt 0:00:05]} 4. d3 {[%emt 0:00:08]} Bc5 {[%emt 0:00:07]} 5. c3 {[%emt 0:00:25]} O-O {[%emt 0:02:05]} 6. O-O {[%emt 0:00:11]} d6 {[%emt 0:00:15]} 7. Re1 {[%emt 0:00:17]} a6 {[%emt 0:00:34]} 8. Bxc6 {[%emt 0:00:25]} bxc6 {[%emt 0:00:22]} 9. Bg5 {[%emt 0:00:09] The position is equal.} h6 {[%emt 0:00:36]} 10. Bh4 {[%emt 0:00:33]} Bg4 {[%emt 0:08:04]} 11. Nbd2 {[%emt 0:07:14]} g5 {[%emt 0:03:40]} 12. Bg3 {[%emt 0:00:38]} Nd7 {[%emt 0:07:26]} 13. h3 {[%emt 0:04:38]} Bh5 {[%emt 0:06:16]} 14. Qa4 {[%emt 0:01:57]} f6 {[%emt 0:11:28]} 15. d4 {[%emt 0:05:59]} Ba7 {[%emt 0:01:31]} 16. Qxa6 {[%emt 0:19:13]} Bxd4 $1 {[%emt 0:00:12]} 17. Qxc6 {[%emt 0:00:03]} Bb6 {[%emt 0:07:09]} 18. Qb5 {[%emt 0:10:06]} Nc5 {[%emt 0:01:14]} 19. Qe2 {[%emt 0:03:01]} Qe8 {[%emt 0:05:04]} 20. b4 {[%emt 0:06:34]} Na4 {[%emt 0:03:18]} 21. Qd3 {[%emt 0:02:35]} Qe6 {[%emt 0:04:24]} 22. Nh2 {[%emt 0:06:00]} Kg7 {[%emt 0:09:22]} 23. Nc4 {[%emt 0:02:52]} Bf7 {[%emt 0:00:41][%mdl 1024] Black has compensation.} 24. Nd2 {[%emt 0:05:24]} Bh5 {[%emt 0:00:33]} (24... Nb2 $15 25. Qc2 Rxa2 26. Rxa2 Qxa2) 25. Kh1 {[%emt 0:05:16]} Bg6 {[%emt 0:04:34]} 26. f3 {[%emt 0:02:57]} f5 {[%emt 0:00:05]} 27. Nhf1 {[%emt 0:01:43]} (27. exf5 $11 Bxf5 28. Qc4 (28. Ne4 d5 $11)) 27... f4 $17 {[%emt 0:06:23]} 28. Bh2 {[%emt 0:00:01]} Bf7 {[%emt 0:00:21] White is weak on the dark squares} (28... Nb2 29. Qc2 Na4 (29... Rxa2 $2 30. Rxa2 Qxa2 31. Rb1 $18) 30. Bg1 $11) 29. Qc2 {[%emt 0:02:22]} ({White should try} 29. Bg1) 29... h5 {[%emt 0:01:22]} 30. Bg1 {[%emt 0:00:47]} (30. Rab1 $17) 30... g4 $19 {[%emt 0:00:11]} 31. Bxb6 {[%emt 0:04:44]} Nxb6 {[%emt 0:01:03]} ({Don't do} 31... cxb6 32. Nh2) 32. a4 {[%emt 0:00:38]} gxh3 {[%emt 0:00:20] ...Kh6 would now be deadly.} 33. Re2 {[%emt 0:01:07]} Kh6 {[%emt 0:02:03]} 34. a5 {[%emt 0:02:30]} Rg8 {[%emt 0:00:17] Strongly threatening ...Rg6.} 35. gxh3 {[%emt 0:02:07]} Rg7 {[%emt 0:04:17][%cal Oa8g8] [#] Threatens to win with ...Rag8!} (35... Qxh3+ 36. Rh2 Qe6 37. Nb1) 36. Nh2 {[%emt 0:01:35]} Qxh3 {[%emt 0:01:31][%cal Oa8g8] ( -> ...Rag8!)} 37. Rg1 $2 {[%emt 0:02:01]} (37. Qc1 {was worth a try.} Nc4 38. Qf1) 37... Rxg1+ {[%emt 0:02:35]} 38. Kxg1 {[%emt 0:00:01]} Rg8+ {[%emt 0:00:36]} 39. Ng4+ $2 {[%emt 0:01:29] [#]} (39. Kh1 $19 Nc4 40. Ndf1) 39... Kg7 $2 {[%emt 0:05:32]} (39... hxg4 {mates} 40. Rh2 gxf3+ 41. Kh1 Qxh2+ 42. Kxh2 Rg2+ 43. Kh1 Nc4 44. Qd3 Nxd2 45. c4 Bxc4 (45... Nxc4 $2 46. Qxf3 Rg3 47. Qxg3 $19) 46. Qxf3 Nxf3 47. Kxg2 Ng5 48. b5 Bxb5 49. Kf2 Nxe4+ 50. Kf3 Nd2+ 51. Kf2 e4 52. Kg2 e3 53. a6 f3+ (53... Bxa6 {is a self mate.} 54. Kg1 f3 55. Kh2 f2 56. Kg3 f1=Q 57. Kh2 Qf2+ 58. Kh3 Bc8#) 54. Kh2 e2 (54... Bxa6 55. Kh3 f2 56. Kh4 f1=Q 57. Kg3 Qf2+ 58. Kh3 Bc8#) 55. Kh3 e1=Q (55... e1=B 56. a7 f2 57. a8=Q f1=Q+ 58. Qg2 Qf4 59. Qg5+ Qxg5 60. Kh2 Qg3+ 61. Kh1 Bc6#) 56. a7 Bd7+ 57. Kh2 Qf2+ 58. Kh1 Qg2#) 40. Rh2 $15 {[%emt 0:00:30]} Qg3+ {[%emt 0:00:23]} 41. Rg2 {[%emt 0:31:17]} Qe1+ {[%emt 0:32:33]} 42. Nf1 $1 {[%emt 0:00:02]} hxg4 {[%emt 0:00:00] Black has an edge.} 43. Rxg4+ {[%emt 0:00:00]} Kf6 {[%emt 0:00:00]} 44. Rxg8 {[%emt 0:00:00]} Bxg8 {[%emt 0:00:00]} 45. axb6 {[%emt 0:00:00]} cxb6 {[%emt 0:00:00] White must now prevent ...Bc4.} 46. Qd2 {[%emt 0:00:00]} Qxd2 {[%emt 0:00:00]} 47. Nxd2 {[%emt 0:00:00] Black had all chances to win.   Weighted Error Value: White=0.31/Black=0.19 (very precise) .  Missed win:     	---       	Black=1      Mistake:       	White=5     	Black=1      Inaccurate:     	White=4     	Black=3      OK:         	White=10    	Black=19     Best:        	White=3     	Black=4      Strong:       	White=1     	Black=1} 1/2-1/2

[Event "Czech Extraliga 2023-24"]
[Site "Czech Republic"]
[Date "2024.02.10"]
[Round "7.7"]
[White "NOV14 Havelka Josef FM"]
[Black "LIN15 Sharashenidze Akaki FM"]
[Result "1/2-1/2"]
[ECO "C47"]
[WhiteElo "2352"]
[BlackElo "2320"]
[Annotator "NA"]
[PlyCount "75"]
[EventDate "2023.10.14"]
[EventCountry "CZE"]
[SourceTitle "playchess.com"]
[Source "ChessBase"]
[SourceQuality "1"]
[TimeControl "40/5400+30:1800+30"]

1. e4 {[%emt 0:00:23]} e5 {[%emt 0:00:05]} 2. Nf3 {[%emt 0:00:04]} Nf6 {[%emt 0:00:05]} 3. Nc3 {[%emt 0:00:24]} Nc6 {[%emt 0:00:05]} 4. a3 {[%emt 0:00:18]} d5 {[%emt 0:07:34]} 5. exd5 {[%emt 0:00:30]} Nxd5 {[%emt 0:00:01]} 6. Nxe5 {[%emt 0:02:14]} Nxc3 {[%emt 0:11:16]} 7. Nxc6 {[%emt 0:01:15]} Nxd1 {[%emt 0:00:31]} 8. Nxd8 {[%emt 0:00:07]} Nxf2 {[%emt 0:00:47]} 9. Kxf2 {[%emt 0:00:17]} Kxd8 {[%emt 0:00:08]} 10. d4 {[%emt 0:01:35]} Bf5 {[%emt 0:01:42]} 11. c4 {[%emt 0:04:22]} Be7 {[%emt 0:03:03]} 12. Be2 {[%emt 0:03:58]} Be4 {[%emt 0:03:25]} 13. Re1 {[%emt 0:04:33]} f5 {[%emt 0:00:21]} 14. Bf4 {[%emt 0:09:05]} Bf6 {[%emt 0:01:56]} 15. Rad1 {[%emt 0:09:50]} Kd7 {[%emt 0:01:24]} 16. g4 {[%emt 0:08:08]} g5 {[%emt 0:22:19]} 17. Be5 {[%emt 0:03:58]} Rhf8 {[%emt 0:05:08]} 18. gxf5 {[%emt 0:07:08]} Bxf5 {[%emt 0:00:32]} 19. Kg3 {[%emt 0:04:46]} Bxe5+ {[%emt 0:01:54]} 20. dxe5+ {[%emt 0:00:06]} Ke7 {[%emt 0:00:05]} 21. Bf3 {[%emt 0:03:54]} Rad8 {[%emt 0:01:32]} 22. b4 {[%emt 0:06:13]} Rxd1 {[%emt 0:04:45]} 23. Rxd1 {[%emt 0:00:16]} b6 {[%emt 0:01:47]} 24. Rd4 {[%emt 0:11:23]} Rd8 {[%emt 0:08:55]} 25. Rxd8 {[%emt 0:02:37]} Kxd8 {[%emt 0:00:02]} 26. Bg4 {[%emt 0:06:21]} Bg6 {[%emt 0:04:27]} 27. c5 {[%emt 0:06:19]} bxc5 {[%emt 0:04:25]} 28. bxc5 {[%emt 0:00:04]} Ke7 {[%emt 0:00:12]} 29. Bc8 {[%emt 0:01:14]} Bh5 {[%emt 0:01:20]} 30. h4 {[%emt 0:01:21]} h6 {[%emt 0:00:51]} 31. Bf5 {[%emt 0:00:13]} Bd1 {[%emt 0:00:27]} 32. hxg5 {[%emt 0:01:12]} hxg5 {[%emt 0:00:02]} 33. Bc8 {[%emt 0:00:12]} Bb3 {[%emt 0:00:38]} 34. Bf5 {[%emt 0:00:24]} Bd1 {[%emt 0:00:23]} 35. Bc8 {[%emt 0:00:20]} Bb3 {[%emt 0:01:14]} 36. Bf5 {[%emt 0:00:06]} Bd1 {[%emt 0:00:48]} 37. Bc8 {[%emt 0:00:10]} Bb3 {[%emt 0:00:25]} 38. Bf5 {[%emt 0:00:10]} 1/2-1/2

[Event "Czech Extraliga 2023-24"]
[Site "Czech Republic"]
[Date "2024.02.10"]
[Round "7.7"]
[White "Burdalev, Kirill"]
[Black "Vavra, Pavel"]
[Result "1/2-1/2"]
[ECO "A81"]
[WhiteElo "2338"]
[BlackElo "2306"]
[Annotator "TA"]
[PlyCount "96"]
[EventDate "2023.10.14"]
[EventCountry "CZE"]
[SourceTitle "playchess.com"]
[Source "ChessBase"]
[SourceQuality "1"]
[TimeControl "40/5400+30:1800+30"]

{[%evp 18,96,0,-10,5,0,7,3,7,0,9,16,32,20,23,0,-2,0,0,0,1,0,0,-8,-6,-13,-12,-17,-4,-7,13,0,35,-20,-12,-23,-31,-13,-11,-14,-17,-52,-45,-51,-39,-83,-59,-45,-47,-75,-7,-7,-8,-26,0,0,0,0,0,-3,0,-7,0,0,0,0,0,0,0,0,0,0,0,0,0,0,0,0,0,0,0]} 1. d4 {[%emt 0:04:56]} f5 {[%emt 0:00:12]} 2. g3 {[%emt 0:00:20]} Nf6 {[%emt 0:00:12]} 3. Bg2 {[%emt 0:00:09]} g6 {[%emt 0:00:12]} 4. b3 {[%emt 0:01:25]} Bg7 {[%emt 0:00:07]} 5. Bb2 {[%emt 0:00:05]} O-O {[%emt 0:01:02]} 6. Nf3 {[%emt 0:00:08][%cal Bg1f3,Bf3e1,Be1d3][%mdl 32]} d6 {[%emt 0:00:19]} 7. O-O {[%emt 0:00:06]} Qe8 {[%emt 0:00:23]} 8. Nbd2 {[%emt 0:00:23]} Nc6 {[%emt 0:00:23]} 9. Nc4 {[%emt 0:10:38]} e6 {[%emt 0:00:26]} 10. a4 {[%emt 0:01:09]} a5 {[%emt 0:00:27]} 11. Ne1 {[%emt 0:07:03]} b6 {[%emt 0:00:30]} 12. Nd3 {[%emt 0:03:34]} Bb7 {[%emt 0:00:12]} 13. Re1 {[%emt 0:02:23]} Qc8 {[%emt 0:02:19]} 14. f3 {[%emt 0:04:08]} Nd7 {[%emt 0:19:58]} 15. e3 {[%emt 0:21:37]} d5 {[%emt 0:05:12]} 16. Nce5 {[%emt 0:04:53]} Ncxe5 {[%emt 0:08:55]} 17. Nxe5 {[%emt 0:01:40]} Nxe5 {[%emt 0:02:25]} 18. dxe5 {[%emt 0:00:16]} c5 {[%emt 0:07:30]} 19. Qd2 {[%emt 0:02:48]} Rd8 {[%emt 0:03:08]} 20. Rad1 {[%emt 0:03:48]} Qc7 {[%emt 0:10:32]} 21. f4 {[%emt 0:00:47]} Bf8 {[%emt 0:00:06]} 22. Qf2 {[%emt 0:05:50]} Bc6 {[%emt 0:02:44]} 23. h3 {[%emt 0:01:00]} Rd7 {[%emt 0:02:27]} 24. Kh2 {[%emt 0:00:26]} Rad8 {[%emt 0:00:44]} 25. Re2 {[%emt 0:02:36]} ({White should play} 25. g4 $14) 25... b5 $11 {[%emt 0:05:57]} 26. axb5 {[%emt 0:00:16]} Bxb5 {[%emt 0:00:06]} 27. Ree1 {[%emt 0:02:00]} c4 {[%emt 0:03:49]} 28. Bd4 {[%emt 0:00:55]} Rc8 {[%emt 0:00:17]} 29. Ra1 {[%emt 0:03:31]} cxb3 {[%emt 0:02:58]} 30. cxb3 {[%emt 0:00:03]} Bb4 {[%emt 0:00:07]} 31. Reb1 {[%emt 0:02:37]} Bd3 {[%emt 0:04:48]} 32. Rb2 {[%emt 0:00:14]} Qb7 {[%emt 0:04:45] Threatens to win with ...Rdc7.} 33. Rd1 {[%emt 0:05:50]} Qb5 {[%emt 0:02:23]} ({Better is} 33... Be4 $17 34. Bxe4 dxe4) 34. Bf1 {[%emt 0:00:58]} Bxf1 {[%emt 0:00:13]} 35. Qxf1 {[%emt 0:00:12]} Qxf1 {[%emt 0:02:55]} 36. Rxf1 {[%emt 0:00:05][%cal Bd1f1,Bf1f2,Bf2g2][%mdl 32] The position is equal.} Rdc7 {[%emt 0:00:06]} 37. Kg2 {[%emt 0:00:37]} Kf7 {[%emt 0:04:30]} 38. Rff2 {[%emt 0:05:16]} Ke7 {[%emt 0:04:16]} 39. Ra2 {[%emt 0:00:52]} Rc6 {[%emt 0:00:34]} 40. Kf3 {[%emt 0:02:52]} Kd7 {[%emt 0:00:55]} 41. g4 {[%emt 0:04:59]} Rc1 {[%emt 0:15:30]} 42. gxf5 {[%emt 0:04:41]} gxf5 {[%emt 0:00:18]} 43. Rg2 {[%emt 0:04:53]} Rf1+ {[%emt 0:00:26]} 44. Raf2 {[%emt 0:02:07]} Rxf2+ {[%emt 0:00:20]} 45. Rxf2 {[%emt 0:04:28]} Bc3 {[%emt 0:03:32] [#] Strongly threatening ...Bxd4.} 46. Ra2 {[%emt 0:04:20]} Bxd4 {[%emt 0:01:36]} 47. exd4 {[%emt 0:00:04]} Rc3+ {[%emt 0:01:32]} 48. Kg2 {[%emt 0:01:02]} Rxb3 {[%emt 0:03:10] Weighted Error Value: White=0.08 (flawless) /Black=0.08 (flawless) .  Mistake:       	White=1     	Black=1      Inaccurate:     	White=3     	Black=2      OK:         	White=18    	Black=15     Best:        	White=1     	Black=1} 1/2-1/2